[Event "7th Paul Keres Memorial Festival 2026 Classic A"]
[Site "ESTONIA Resort Hotel & Spa conference center, EE"]
[Date "2026.07.28"]
[Round "3"]
[White "Ostensen, Nicolai Maxime"]
[Black "Ter-Avetisjana, Agnesa Stepania"]
[Result "1-0"]
[Board "6"]
[TimeControl "5400+30"]
[WhiteFideId "1546970"]
[BlackFideId "11614900"]
[WhiteElo "2407"]
[BlackElo "2141"]
[WhiteTitle "FM"]
[BlackTitle "WIM"]
[WhiteClock "0:06:02"]
[BlackClock "0:02:16"]
[Variant "Standard"]
[EndDate "2026.07.28"]
[EndTime "16:59:47"]

1. e4 {[%clk 1:30:58]}  c6 {[%clk 1:29:09]} 2. d4 {[%clk 1:31:24]}  d5 {[%clk 1:29:36]} 3. Nc3 {[%clk 1:31:50]}  dxe4 {[%clk 1:29:58]}
4. Nxe4 {[%clk 1:32:17]}  Bf5 {[%clk 1:30:23]} 5. Qf3 {[%clk 1:32:42]}  e6 {[%clk 1:28:59]} 6. Ne2 {[%clk 1:32:20]}  Nd7 {[%clk 1:27:44]}
7. N2g3 {[%clk 1:29:49]}  Bg6 {[%clk 1:27:14]} 8. c3 {[%clk 1:25:33]}  Ngf6 {[%clk 1:25:17]} 9. Nxf6+ {[%clk 1:25:07]}  Nxf6 {[%clk 1:25:31]}
10. h4 {[%clk 1:24:26]}  h6 {[%clk 1:25:30]} 11. h5 {[%clk 1:24:39]}  Bh7 {[%clk 1:22:03]} 12. Bd3 {[%clk 1:14:27]}  Bxd3 {[%clk 1:15:47]}
13. Qxd3 {[%clk 1:14:51]}  Qd5 {[%clk 1:16:12]} 14. Kf1 {[%clk 1:13:04]}  Rd8 {[%clk 1:12:43]} 15. Be3 {[%clk 0:59:40]}  Be7 {[%clk 1:07:23]}
16. b3 {[%clk 0:51:14]}  Qa5 {[%clk 1:03:34]} 17. Qc2 {[%clk 0:44:56]}  Bd6 {[%clk 1:03:22]} 18. Ne2 {[%clk 0:37:47]}  O-O {[%clk 1:00:18]}
19. Rd1 {[%clk 0:35:12]}  c5 {[%clk 0:56:42]} 20. Rh4 {[%clk 0:28:51]}  cxd4 {[%clk 0:54:38]} 21. Rdxd4 {[%clk 0:22:08]}  Bc7 {[%clk 0:53:21]}
22. Ra4 {[%clk 0:20:10]}  Qf5 {[%clk 0:53:36]} 23. Nd4 {[%clk 0:18:42]}  Qxc2 {[%clk 0:52:08]} 24. Nxc2 {[%clk 0:19:03]}  a5 {[%clk 0:44:54]}
25. Rac4 {[%clk 0:16:58]}  Be5 {[%clk 0:42:50]} 26. Rc5 {[%clk 0:15:56]}  Rd5 {[%clk 0:36:55]} 27. c4 {[%clk 0:15:15]}  Rxc5 {[%clk 0:31:29]}
28. Bxc5 {[%clk 0:15:41]}  Rd8 {[%clk 0:31:52]} 29. Ke2 {[%clk 0:15:09]}  a4 {[%clk 0:29:11]} 30. Be7 {[%clk 0:11:52]}  Rd7 {[%clk 0:25:24]}
31. Bxf6 {[%clk 0:11:35]}  gxf6 {[%clk 0:25:45]} 32. Rh3 {[%clk 0:11:13]}  axb3 {[%clk 0:24:45]} 33. axb3 {[%clk 0:11:28]}  f5 {[%clk 0:24:22]}
34. Re3 {[%clk 0:11:02]}  Bc7 {[%clk 0:20:55]} 35. Rd3 {[%clk 0:10:26]}  Re7 {[%clk 0:18:23]} 36. c5 {[%clk 0:08:50]}  Kg7 {[%clk 0:18:42]}
37. b4 {[%clk 0:09:02]}  Be5 {[%clk 0:17:50]} 38. Na3 {[%clk 0:08:43]}  Kf6 {[%clk 0:14:10]} 39. Nc4 {[%clk 0:08:57]}  Rc7 {[%clk 0:14:39]}
40. Ke3 {[%clk 0:08:07]}  Re7 {[%clk 0:13:39]} 41. f4 {[%clk 0:07:20]}  Bc7 {[%clk 0:13:50]} 42. Kf3 {[%clk 0:07:29]}  e5 {[%clk 0:13:32]}
43. fxe5+ {[%clk 0:07:52]}  Kg5 {[%clk 0:09:46]} 44. Rd5 {[%clk 0:07:54]}  f6 {[%clk 0:07:10]} 45. exf6 {[%clk 0:07:51]}  Kxf6 {[%clk 0:07:11]}
46. Ne3 {[%clk 0:07:21]}  Be5 {[%clk 0:05:12]} 47. Rd8 {[%clk 0:05:39]}  Rg7 {[%clk 0:01:49]} 48. Rf8+ {[%clk 0:05:46]}  Ke6 {[%clk 0:02:16]}
49. Re8+ {[%clk 0:06:02]} 1-0

[Event "7th Paul Keres Memorial Festival 2026 Classic A"]
[Site "ESTONIA Resort Hotel & Spa conference center, EE"]
[Date "2026.07.28"]
[Round "3"]
[White "Harikrishnan.A.Ra"]
[Black "Ternault, Mathieu"]
[Result "1-0"]
[Board "7"]
[TimeControl "5400+30"]
[WhiteFideId "5081483"]
[BlackFideId "20641532"]
[WhiteElo "2519"]
[BlackElo "2281"]
[WhiteTitle "GM"]
[BlackTitle "FM"]
[WhiteClock "0:11:14"]
[BlackClock "0:00:32"]
[Variant "Standard"]
[EndDate "2026.07.28"]
[EndTime "16:52:06"]

1. d4 {[%clk 1:30:58]}  Nf6 {[%clk 1:24:04]} 2. Bf4 {[%clk 1:31:00]}  e6 {[%clk 1:24:06]} 3. e3 {[%clk 1:30:52]}  d6 {[%clk 1:23:13]}
4. h3 {[%clk 1:30:50]}  Be7 {[%clk 1:22:24]} 5. Nf3 {[%clk 1:31:08]}  c5 {[%clk 1:20:32]} 6. c3 {[%clk 1:23:19]}  b6 {[%clk 1:11:24]}
7. Bb5+ {[%clk 1:21:39]}  Bd7 {[%clk 1:10:54]} 8. Bd3 {[%clk 1:21:23]}  Bc6 {[%clk 1:07:44]} 9. O-O {[%clk 1:21:37]}  Nbd7 {[%clk 1:02:52]}
10. Bh2 {[%clk 1:18:51]}  Ne4 {[%clk 0:57:54]} 11. c4 {[%clk 1:07:55]}  O-O {[%clk 0:54:08]} 12. Bxe4 {[%clk 1:02:56]}  Bxe4 {[%clk 0:54:30]}
13. Nc3 {[%clk 1:03:17]}  Bb7 {[%clk 0:50:33]} 14. d5 {[%clk 1:00:11]}  e5 {[%clk 0:44:36]} 15. e4 {[%clk 1:00:34]}  g6 {[%clk 0:43:17]}
16. Ne1 {[%clk 0:58:45]}  Bg5 {[%clk 0:41:02]} 17. Nd3 {[%clk 0:58:05]}  Qe7 {[%clk 0:40:48]} 18. a3 {[%clk 0:55:42]}  Nf6 {[%clk 0:35:45]}
19. Qe2 {[%clk 0:32:01]}  Nh5 {[%clk 0:33:26]} 20. g3 {[%clk 0:29:35]}  Bh6 {[%clk 0:25:55]} 21. f4 {[%clk 0:29:15]}  exf4 {[%clk 0:25:12]}
22. gxf4 {[%clk 0:29:33]}  f5 {[%clk 0:22:08]} 23. e5 {[%clk 0:28:13]}  dxe5 {[%clk 0:21:56]} 24. fxe5 {[%clk 0:28:13]}  Qg5+ {[%clk 0:21:56]}
25. Kh1 {[%clk 0:26:26]}  Qh4 {[%clk 0:18:33]} 26. b3 {[%clk 0:24:36]}  Qxh3 {[%clk 0:17:34]} 27. Rf3 {[%clk 0:25:02]}  Qh4 {[%clk 0:17:07]}
28. Rg1 {[%clk 0:24:33]}  Rae8 {[%clk 0:15:31]} 29. Qg2 {[%clk 0:22:35]}  Bg7 {[%clk 0:09:50]} 30. Rh3 {[%clk 0:20:34]}  Qg4 {[%clk 0:06:22]}
31. Qf1 {[%clk 0:17:40]}  Qd4 {[%clk 0:06:37]} 32. Nb5 {[%clk 0:17:39]}  Qe4+ {[%clk 0:06:13]} 33. Rg2 {[%clk 0:18:02]}  Rd8 {[%clk 0:00:48]}
34. Nf2 {[%clk 0:15:07]}  Qc2 {[%clk 0:01:00]} 35. Nd3 {[%clk 0:15:19]}  Qxb3 {[%clk 0:00:37]} 36. Nf4 {[%clk 0:15:42]}  Qxb5 {[%clk 0:00:34]}
37. cxb5 {[%clk 0:15:51]}  Nxf4 {[%clk 0:01:03]} 38. Bxf4 {[%clk 0:15:45]}  Bxd5 {[%clk 0:01:23]} 39. Re3 {[%clk 0:13:54]}  Rfe8 {[%clk 0:00:42]}
40. Rd3 {[%clk 0:12:56]}  Be4 {[%clk 0:00:33]} 41. Rd1 {[%clk 0:12:07]}  h6 {[%clk 0:00:35]} 42. Qc4+ {[%clk 0:11:00]}  Kh7 {[%clk 0:00:38]}
43. Rxd8 {[%clk 0:10:27]}  Rxd8 {[%clk 0:01:07]} 44. Qf7 {[%clk 0:10:48]}  g5 {[%clk 0:01:20]} 45. e6 {[%clk 0:10:55]}  Rf8 {[%clk 0:00:33]}
46. Qd7 {[%clk 0:11:11]}  Rg8 {[%clk 0:00:32]} 47. Be5 {[%clk 0:11:14]} 1-0

[Event "7th Paul Keres Memorial Festival 2026 Classic A"]
[Site "ESTONIA Resort Hotel & Spa conference center, EE"]
[Date "2026.07.28"]
[Round "3"]
[White "Beniosev, Daniel"]
[Black "Fecker, Noah"]
[Result "1/2-1/2"]
[Board "8"]
[TimeControl "5400+30"]
[WhiteFideId "11632674"]
[BlackFideId "1334263"]
[WhiteElo "1954"]
[BlackElo "2371"]
[WhiteTitle "CM"]
[BlackTitle "FM"]
[WhiteClock "0:17:52"]
[BlackClock "0:08:25"]
[Variant "Standard"]
[EndDate "2026.07.28"]
[EndTime "16:11:27"]

1. e4 {[%clk 1:30:25]}  c6 {[%clk 1:30:52]} 2. Nf3 {[%clk 1:30:05]}  d5 {[%clk 1:31:17]} 3. e5 {[%clk 1:30:11]}  Bg4 {[%clk 1:26:55]}
4. Be2 {[%clk 1:27:55]}  e6 {[%clk 1:26:30]} 5. O-O {[%clk 1:27:23]}  c5 {[%clk 1:24:08]} 6. c4 {[%clk 1:25:53]}  dxc4 {[%clk 1:19:12]}
7. Na3 {[%clk 1:14:17]}  Ne7 {[%clk 1:08:45]} 8. Nxc4 {[%clk 1:07:39]}  Nec6 {[%clk 1:07:53]} 9. Qb3 {[%clk 1:00:40]}  Qd7 {[%clk 0:59:53]}
10. h3 {[%clk 0:51:49]}  Bxf3 {[%clk 0:55:58]} 11. Bxf3 {[%clk 0:50:40]}  Be7 {[%clk 0:55:20]} 12. d3 {[%clk 0:48:53]}  O-O {[%clk 0:49:25]}
13. Be3 {[%clk 0:45:19]}  Rd8 {[%clk 0:37:56]} 14. Be4 {[%clk 0:35:59]}  Na6 {[%clk 0:36:33]} 15. f4 {[%clk 0:29:23]}  Nab4 {[%clk 0:31:18]}
16. a4 {[%clk 0:23:31]}  Nd4 {[%clk 0:23:00]} 17. Bxd4 {[%clk 0:22:18]}  Qxd4+ {[%clk 0:23:10]} 18. Kh1 {[%clk 0:19:34]}  Nxd3 {[%clk 0:14:54]}
19. Bxd3 {[%clk 0:18:51]}  Qxd3 {[%clk 0:15:19]} 20. Qxb7 {[%clk 0:19:08]}  Qxc4 {[%clk 0:08:52]} 21. Qxe7 {[%clk 0:17:52]}  Re8 {[%clk 0:08:25]} 1/2-1/2

[Event "7th Paul Keres Memorial Festival 2026 Classic A"]
[Site "ESTONIA Resort Hotel & Spa conference center, EE"]
[Date "2026.07.28"]
[Round "3"]
[White "Maltsevskaya, Aleksandra"]
[Black "Lazars, Krisjanis"]
[Result "1-0"]
[Board "9"]
[TimeControl "5400+30"]
[WhiteFideId "24174041"]
[BlackFideId "11635452"]
[WhiteElo "2360"]
[BlackElo "2007"]
[WhiteTitle "IM"]
[BlackTitle "CM"]
[WhiteClock "0:50:35"]
[BlackClock "0:14:41"]
[Variant "Standard"]
[EndDate "2026.07.28"]
[EndTime "16:08:46"]

1. e4 {[%clk 1:30:50]}  c5 {[%clk 1:30:36]} 2. Nc3 {[%clk 1:30:50]}  Nc6 {[%clk 1:29:25]} 3. f4 {[%clk 1:30:50]}  g6 {[%clk 1:30:36]}
4. Nf3 {[%clk 1:32:01]}  Bg7 {[%clk 1:29:25]} 5. a4 {[%clk 1:32:24]}  e6 {[%clk 1:28:30]} 6. e5 {[%clk 1:32:38]}  d6 {[%clk 1:27:23]}
7. Bb5 {[%clk 1:30:18]}  Nge7 {[%clk 1:23:20]} 8. d4 {[%clk 1:27:02]}  cxd4 {[%clk 1:22:05]} 9. Qxd4 {[%clk 1:26:04]}  dxe5 {[%clk 1:21:41]}
10. Qxd8+ {[%clk 1:26:26]}  Kxd8 {[%clk 1:22:04]} 11. O-O {[%clk 1:25:01]}  exf4 {[%clk 1:21:12]} 12. Bxf4 {[%clk 1:25:22]}  e5 {[%clk 1:21:27]}
13. Be3 {[%clk 1:20:51]}  Be6 {[%clk 1:08:45]} 14. Ng5 {[%clk 1:20:34]}  Nf5 {[%clk 1:07:54]} 15. Nxe6+ {[%clk 1:20:37]}  fxe6 {[%clk 1:08:21]}
16. Bg5+ {[%clk 1:20:47]}  Kc7 {[%clk 1:08:26]} 17. Bc4 {[%clk 1:20:27]}  h6 {[%clk 1:07:59]} 18. Bd2 {[%clk 1:20:39]}  Rad8 {[%clk 1:07:07]}
19. Rad1 {[%clk 1:20:39]}  Rhe8 {[%clk 0:58:33]} 20. g4 {[%clk 1:18:29]}  Nd6 {[%clk 0:51:01]} 21. Nb5+ {[%clk 1:18:50]}  Kb8 {[%clk 0:50:48]}
22. Bd3 {[%clk 1:16:41]}  g5 {[%clk 0:46:46]} 23. Be3 {[%clk 1:08:25]}  Nd4 {[%clk 0:34:45]} 24. Nxd6 {[%clk 1:08:17]}  Rxd6 {[%clk 0:35:01]}
25. Rf7 {[%clk 1:08:33]}  Bf8 {[%clk 0:31:57]} 26. Rdf1 {[%clk 1:08:06]}  Rdd8 {[%clk 0:29:45]} 27. Rh7 {[%clk 1:01:01]}  Nc6 {[%clk 0:22:34]}
28. Be4 {[%clk 1:00:42]}  Re7 {[%clk 0:21:24]} 29. Rff7 {[%clk 0:59:56]}  Rd1+ {[%clk 0:16:54]} 30. Kf2 {[%clk 0:59:33]}  Rxf7+ {[%clk 0:17:20]}
31. Rxf7 {[%clk 0:59:56]}  Bb4 {[%clk 0:16:53]} 32. c3 {[%clk 0:55:56]}  Ba5 {[%clk 0:15:22]} 33. Ke2 {[%clk 0:44:39]}  Ra1 {[%clk 0:14:41]}
34. Bxa7+ {[%clk 0:44:58]}  Kxa7 {[%clk 0:14:27]} 35. Bxc6 {[%clk 0:45:22]}  Kb6 {[%clk 0:13:51]} 36. Be4 {[%clk 0:45:42]}  Rxa4 {[%clk 0:13:20]}
37. b4 {[%clk 0:46:05]}  Ka6 {[%clk 0:09:33]} 38. Bxb7+ {[%clk 0:46:27]}  Kb6 {[%clk 0:09:57]} 39. bxa5+ {[%clk 0:46:52]}  Kxa5 {[%clk 0:10:09]}
40. h3 {[%clk 0:46:28]}  Ra2+ {[%clk 0:10:18]} 41. Kd3 {[%clk 0:46:51]}  Rh2 {[%clk 0:10:25]} 42. Rf3 {[%clk 0:45:23]}  Kb6 {[%clk 0:10:39]}
43. Bc8 {[%clk 0:45:47]}  Kc5 {[%clk 0:10:37]} 44. Bxe6 {[%clk 0:46:09]}  Kd6 {[%clk 0:10:57]} 45. Bg8 {[%clk 0:46:27]}  Rh1 {[%clk 0:11:09]}
46. Rf6+ {[%clk 0:46:45]}  Kc5 {[%clk 0:11:34]} 47. Rxh6 {[%clk 0:47:03]}  Rg1 {[%clk 0:11:54]} 48. c4 {[%clk 0:47:06]}  Re1 {[%clk 0:12:08]}
49. Bd5 {[%clk 0:47:26]}  Rd1+ {[%clk 0:11:39]} 50. Ke4 {[%clk 0:47:50]}  Re1+ {[%clk 0:12:07]} 51. Kf5 {[%clk 0:48:14]}  Kd4 {[%clk 0:12:34]}
52. Kxg5 {[%clk 0:48:36]}  e4 {[%clk 0:13:00]} 53. Re6 {[%clk 0:48:59]}  e3 {[%clk 0:13:27]} 54. h4 {[%clk 0:49:24]}  Kd3 {[%clk 0:13:50]}
55. h5 {[%clk 0:49:48]}  Kd2 {[%clk 0:14:18]} 56. h6 {[%clk 0:50:11]}  Rh1 {[%clk 0:14:41]} 57. Bxh1 {[%clk 0:50:35]} 1-0

[Event "7th Paul Keres Memorial Festival 2026 Classic A"]
[Site "ESTONIA Resort Hotel & Spa conference center, EE"]
[Date "2026.07.28"]
[Round "3"]
[White "Krivonosov, Oleg"]
[Black "Mortensen, Michael"]
[Result "1/2-1/2"]
[Board "10"]
[TimeControl "5400+30"]
[WhiteFideId "11600349"]
[BlackFideId "1580515"]
[WhiteElo "2290"]
[BlackElo "2132"]
[WhiteTitle "IM"]
[BlackTitle "CM"]
[WhiteClock "1:34:32"]
[BlackClock "1:36:28"]
[Variant "Standard"]
[EndDate "2026.07.28"]
[EndTime "13:28:12"]

1. Nf3 {[%clk 1:30:54]}  d5 {[%clk 1:30:52]} 2. d4 {[%clk 1:31:04]}  Nf6 {[%clk 1:31:10]} 3. c4 {[%clk 1:31:20]}  c6 {[%clk 1:31:23]}
4. cxd5 {[%clk 1:31:33]}  cxd5 {[%clk 1:31:45]} 5. Nc3 {[%clk 1:31:51]}  Nc6 {[%clk 1:31:59]} 6. Bf4 {[%clk 1:32:11]}  Bf5 {[%clk 1:32:19]}
7. e3 {[%clk 1:32:26]}  e6 {[%clk 1:32:34]} 8. Qb3 {[%clk 1:32:40]}  Bb4 {[%clk 1:32:43]} 9. Bb5 {[%clk 1:32:57]}  O-O {[%clk 1:33:05]}
10. Bxc6 {[%clk 1:33:14]}  Bxc3+ {[%clk 1:33:29]} 11. Qxc3 {[%clk 1:33:32]}  Rc8 {[%clk 1:33:56]} 12. Ne5 {[%clk 1:33:46]}  Ng4 {[%clk 1:34:21]}
13. Nxg4 {[%clk 1:33:44]}  Bxg4 {[%clk 1:34:44]} 14. Qb4 {[%clk 1:33:55]}  Rxc6 {[%clk 1:35:08]} 15. Qxb7 {[%clk 1:34:03]}  Qc8 {[%clk 1:35:32]}
16. Qxc8 {[%clk 1:34:23]}  Rfxc8 {[%clk 1:35:56]} 17. O-O {[%clk 1:34:41]}  a5 {[%clk 1:36:18]} 18. b3 {[%clk 1:34:32]}  h5 {[%clk 1:36:28]}
19. h4 {[%clk 1:31:25]} 1/2-1/2

[Event "7th Paul Keres Memorial Festival 2026 Classic A"]
[Site "ESTONIA Resort Hotel & Spa conference center, EE"]
[Date "2026.07.29"]
[Round "4"]
[White "Keinanen, Toivo"]
[Black "Kazakouski, Valery"]
[Result "1/2-1/2"]
[Board "1"]
[TimeControl "5400+30"]
[WhiteFideId "509825"]
[BlackFideId "13507443"]
[WhiteElo "2495"]
[BlackElo "2594"]
[WhiteTitle "IM"]
[BlackTitle "GM"]
[WhiteClock "0:03:15"]
[BlackClock "0:03:56"]
[Variant "Standard"]
[EndDate "2026.07.29"]
[EndTime "12:11:17"]

1. d4 {[%clk 1:28:56]}  Nf6 {[%clk 1:30:44]} 2. Nf3 {[%clk 1:29:02]}  e6 {[%clk 1:31:06]} 3. c4 {[%clk 1:29:22]}  d5 {[%clk 1:30:45]}
4. g3 {[%clk 1:29:32]}  Be7 {[%clk 1:27:01]} 5. Bg2 {[%clk 1:29:04]}  O-O {[%clk 1:27:22]} 6. O-O {[%clk 1:29:13]}  c6 {[%clk 1:27:44]}
7. Qc2 {[%clk 1:26:18]}  Nbd7 {[%clk 1:27:45]} 8. Nbd2 {[%clk 1:24:49]}  b6 {[%clk 1:28:06]} 9. e4 {[%clk 1:25:12]}  dxc4 {[%clk 1:28:30]}
10. Nxc4 {[%clk 1:24:47]}  Bb7 {[%clk 1:28:52]} 11. Bf4 {[%clk 1:23:56]}  c5 {[%clk 1:25:28]} 12. Rfe1 {[%clk 1:20:13]}  cxd4 {[%clk 1:07:53]}
13. Nd6 {[%clk 1:16:59]}  Bxd6 {[%clk 0:48:25]} 14. Bxd6 {[%clk 1:17:06]}  d3 {[%clk 0:45:16]} 15. Qxd3 {[%clk 1:14:51]}  Nc5 {[%clk 0:42:39]}
16. Qd1 {[%clk 1:00:59]}  Re8 {[%clk 0:42:47]} 17. Bxc5 {[%clk 1:01:06]}  bxc5 {[%clk 0:41:20]} 18. Qc2 {[%clk 0:57:40]}  h6 {[%clk 0:39:15]}
19. Nd2 {[%clk 0:53:11]}  Qc7 {[%clk 0:33:55]} 20. Rac1 {[%clk 0:52:01]}  Nd7 {[%clk 0:33:46]} 21. Nc4 {[%clk 0:48:13]}  Nb6 {[%clk 0:25:16]}
22. Re3 {[%clk 0:45:11]}  Nxc4 {[%clk 0:23:41]} 23. Qxc4 {[%clk 0:45:40]}  Red8 {[%clk 0:23:42]} 24. b4 {[%clk 0:42:39]}  Rd2 {[%clk 0:21:15]}
25. bxc5 {[%clk 0:38:32]}  Rad8 {[%clk 0:21:14]} 26. Bf3 {[%clk 0:35:37]}  Bc6 {[%clk 0:20:40]} 27. Qa6 {[%clk 0:25:42]}  g5 {[%clk 0:19:17]}
28. h3 {[%clk 0:22:23]}  Kg7 {[%clk 0:17:01]} 29. Kg2 {[%clk 0:19:16]}  e5 {[%clk 0:12:43]} 30. Re2 {[%clk 0:14:19]}  R2d4 {[%clk 0:08:40]}
31. Qa3 {[%clk 0:12:33]}  Ra4 {[%clk 0:07:57]} 32. Qc3 {[%clk 0:12:01]}  Rdd4 {[%clk 0:07:53]} 33. Rd2 {[%clk 0:11:05]}  Rxd2 {[%clk 0:02:16]}
34. Qxd2 {[%clk 0:11:35]}  Rd4 {[%clk 0:02:38]} 35. Qc3 {[%clk 0:08:18]}  f6 {[%clk 0:02:28]} 36. Qb3 {[%clk 0:02:05]}  Qd7 {[%clk 0:00:59]}
37. Rd1 {[%clk 0:01:21]}  h5 {[%clk 0:00:44]} 38. Bxh5 {[%clk 0:00:32]}  Bxe4+ {[%clk 0:01:13]} 39. Kh2 {[%clk 0:00:52]}  Bc6 {[%clk 0:00:35]}
40. Rxd4 {[%clk 0:00:42]}  exd4 {[%clk 0:01:02]} 41. Bf3 {[%clk 0:01:00]}  d3 {[%clk 0:00:34]} 42. Bxc6 {[%clk 0:01:07]}  Qxc6 {[%clk 0:01:03]}
43. Qxd3 {[%clk 0:01:34]}  Qxc5 {[%clk 0:01:25]} 44. Kg2 {[%clk 0:01:31]}  a5 {[%clk 0:01:38]} 45. Qd7+ {[%clk 0:01:26]}  Kh6 {[%clk 0:01:16]}
46. a4 {[%clk 0:01:16]}  Qb4 {[%clk 0:01:07]} 47. Qc6 {[%clk 0:00:48]}  Kg7 {[%clk 0:01:28]} 48. Qc7+ {[%clk 0:00:59]}  Kh6 {[%clk 0:01:37]}
49. Qd8 {[%clk 0:00:36]}  Kg7 {[%clk 0:01:32]} 50. Qd7+ {[%clk 0:00:56]}  Kh6 {[%clk 0:01:39]} 51. Qe8 {[%clk 0:00:54]}  Kg7 {[%clk 0:01:46]}
52. Qc6 {[%clk 0:01:23]}  Kg6 {[%clk 0:01:50]} 53. Kh2 {[%clk 0:01:07]}  Kg7 {[%clk 0:02:01]} 54. Qd7+ {[%clk 0:00:45]}  Kh6 {[%clk 0:02:20]}
55. Kg1 {[%clk 0:00:37]}  Qe1+ {[%clk 0:02:38]} 56. Kg2 {[%clk 0:01:05]}  Qe4+ {[%clk 0:02:57]} 57. Kh2 {[%clk 0:01:28]}  Qb4 {[%clk 0:03:03]}
58. Qc6 {[%clk 0:00:49]}  Kg7 {[%clk 0:03:20]} 59. Kg1 {[%clk 0:01:03]}  Kg6 {[%clk 0:03:28]} 60. Kg2 {[%clk 0:01:18]}  Kg7 {[%clk 0:03:48]}
61. Kf3 {[%clk 0:01:12]}  Qe1 {[%clk 0:03:15]} 62. Qb7+ {[%clk 0:00:56]}  Kh6 {[%clk 0:03:41]} 63. Kg2 {[%clk 0:01:05]}  Qb4 {[%clk 0:03:08]}
64. Qd7 {[%clk 0:01:03]}  Qe4+ {[%clk 0:03:17]} 65. Kh2 {[%clk 0:01:28]}  Qb4 {[%clk 0:03:41]} 66. Qf5 {[%clk 0:01:09]}  Kg7 {[%clk 0:03:56]}
67. Qc2 {[%clk 0:01:31]}  Kh6 {[%clk 0:03:53]} 68. Kg2 {[%clk 0:01:28]}  Qb7+ {[%clk 0:04:10]} 69. Kg1 {[%clk 0:01:44]}  Kg7 {[%clk 0:04:17]}
70. Qd1 {[%clk 0:01:28]}  Qb4 {[%clk 0:04:35]} 71. Kh2 {[%clk 0:01:49]}  Kh6 {[%clk 0:04:16]} 72. Qg4 {[%clk 0:01:45]}  Kg7 {[%clk 0:03:49]}
73. Qd7+ {[%clk 0:01:33]}  Kh6 {[%clk 0:04:16]} 74. Qb5 {[%clk 0:02:00]}  Kg7 {[%clk 0:04:04]} 75. Qxb4 {[%clk 0:00:36]}  axb4 {[%clk 0:04:32]}
76. a5 {[%clk 0:01:05]}  b3 {[%clk 0:04:52]} 77. a6 {[%clk 0:01:35]}  b2 {[%clk 0:05:15]} 78. a7 {[%clk 0:02:04]}  b1=Q {[%clk 0:05:38]}
79. a8=Q {[%clk 0:02:29]}  Qf1 {[%clk 0:05:24]} 80. Qf3 {[%clk 0:02:41]}  Qc4 {[%clk 0:05:32]} 81. Qf5 {[%clk 0:02:46]}  Qb4 {[%clk 0:05:26]}
82. Kg2 {[%clk 0:02:28]}  Qd4 {[%clk 0:05:14]} 83. Qe6 {[%clk 0:02:21]}  Kf8 {[%clk 0:04:34]} 84. Kf3 {[%clk 0:02:03]}  Qd3+ {[%clk 0:03:31]}
85. Qe3 {[%clk 0:01:02]}  Qf5+ {[%clk 0:03:49]} 86. Kg2 {[%clk 0:01:31]}  Qd5+ {[%clk 0:03:51]} 87. Kh2 {[%clk 0:01:44]}  Kf7 {[%clk 0:03:43]}
88. h4 {[%clk 0:02:01]}  gxh4 {[%clk 0:03:38]} 89. gxh4 {[%clk 0:02:30]}  Qd6+ {[%clk 0:03:35]} 90. Kg2 {[%clk 0:02:43]}  Qd5+ {[%clk 0:03:41]}
91. Kg3 {[%clk 0:03:11]}  Qh1 {[%clk 0:03:30]} 92. f3 {[%clk 0:03:12]}  Kg7 {[%clk 0:02:54]} 93. Qe7+ {[%clk 0:02:34]}  Kg6 {[%clk 0:03:21]}
94. Qe4+ {[%clk 0:02:32]}  Kg7 {[%clk 0:03:13]} 95. Qf5 {[%clk 0:02:18]}  Qg1+ {[%clk 0:02:21]} 96. Kh3 {[%clk 0:02:38]}  Kf7 {[%clk 0:02:15]}
97. Qd7+ {[%clk 0:02:41]}  Kf8 {[%clk 0:02:40]} 98. Qc8+ {[%clk 0:02:12]}  Kf7 {[%clk 0:02:57]} 99. Qf5 {[%clk 0:02:20]}  Ke7 {[%clk 0:02:26]}
100. Qe4+ {[%clk 0:01:16]}  Kf7 {[%clk 0:02:36]} 101. Qc4+ {[%clk 0:00:44]}  Kf8 {[%clk 0:02:31]} 102. Qb4+ {[%clk 0:01:03]}  Kf7 {[%clk 0:02:33]}
103. Qb3+ {[%clk 0:01:27]}  Kg7 {[%clk 0:02:07]} 104. Qb7+ {[%clk 0:01:50]}  Kf8 {[%clk 0:02:28]} 105. Qb8+ {[%clk 0:02:13]}  Kf7 {[%clk 0:02:52]}
106. Qc7+ {[%clk 0:02:40]}  Kf8 {[%clk 0:03:12]} 107. Qg3 {[%clk 0:03:05]}  Qc5 {[%clk 0:02:49]} 108. Qg6 {[%clk 0:03:00]}  Qc8+ {[%clk 0:01:55]}
109. Kg3 {[%clk 0:03:07]}  Qc3 {[%clk 0:01:10]} 110. h5 {[%clk 0:02:31]}  Qe1+ {[%clk 0:01:06]} 111. Kg4 {[%clk 0:02:06]}  Qg1+ {[%clk 0:01:24]}
112. Kf5 {[%clk 0:01:53]}  Qc5+ {[%clk 0:01:40]} 113. Kf4 {[%clk 0:01:43]}  Qc1+ {[%clk 0:01:55]} 114. Ke4 {[%clk 0:01:23]}  Qc2+ {[%clk 0:02:08]}
115. Kf4 {[%clk 0:01:34]}  Qc1+ {[%clk 0:02:34]} 116. Kg3 {[%clk 0:01:56]}  Qg1+ {[%clk 0:02:59]} 117. Kh4 {[%clk 0:02:22]}  Qh2+ {[%clk 0:02:56]}
118. Kg4 {[%clk 0:02:46]}  Qg1+ {[%clk 0:03:23]} 119. Kf5 {[%clk 0:03:11]}  Qc5+ {[%clk 0:03:49]} 120. Kxf6 {[%clk 0:03:15]}  Qc6+ {[%clk 0:03:56]} 1/2-1/2